fUSD/lending_fUSD_20250117
["ID","MTS","AMOUNT","RATE_DAILY","PERIOD"]
[349343122,1737126658601,-500.0,0.00023198,2]
[349343124,1737126658612,-500.0,0.00023198,2]
[349343127,1737126658623,-500.0,0.00023198,2]
[349343129,1737126658632,-500.0,0.00023198,2]
[349343131,1737126658643,-500.0,0.00023198,2]
[349343133,1737126658653,-500.0,0.00023198,2]
[349343135,1737126658663,-500.0,0.00023198,2]
[349343137,1737126658672,-500.0,0.00023198,2]
[349343139,1737126658681,-500.0,0.00023198,2]
[349343141,1737126658691,-238.54191946,0.00023198,2]
[349343143,1737126658700,-500.0,0.00023198,2]
[349343144,1737126658709,-500.0,0.00023198,2]
[349343147,1737126658719,-500.0,0.00023198,2]
[349343149,1737126658729,-500.0,0.00023198,2]
[349343150,1737126658738,-500.0,0.00023198,2]
[349343153,1737126658748,-346.63760439,0.00023198,2]
[349343155,1737126658758,-500.0,0.00023198,2]
[349343157,1737126658767,-500.0,0.00023198,2]
[349343159,1737126658777,-500.0,0.00023198,2]
[349343160,1737126658787,-500.0,0.00023198,2]
[349343162,1737126658796,-500.0,0.00023198,2]
[349343164,1737126658806,-500.0,0.00023198,2]
[349343166,1737126658815,-500.0,0.00023198,2]
[349343168,1737126658825,-500.0,0.00023198,2]
[349343170,1737126658834,-501.52015703,0.00023198,2]
[349343172,1737126658844,-500.0,0.00023198,2]
[349343173,1737126658853,-573.37791864,0.00023198,2]
[349343174,1737126658862,-500.0,0.00023198,2]
[349343175,1737126658871,-500.0,0.00023198,2]
[349343176,1737126658880,-500.0,0.00023198,2]
[349343177,1737126658889,-500.0,0.00023198,2]
[349343178,1737126658898,-500.0,0.00023198,2]
[349343179,1737126658907,-500.0,0.00023198,2]
[349343180,1737126658916,-500.0,0.00023198,2]
[349343182,1737126658925,-500.0,0.00023198,2]
[349343183,1737126658935,-500.0,0.00023198,2]
[349343185,1737126658944,-500.0,0.00023198,2]
[349343187,1737126658954,-500.0,0.00023198,2]
[349343190,1737126658963,-500.0,0.00023198,2]
[349343192,1737126658973,-500.0,0.00023198,2]
[349343194,1737126658984,-500.0,0.00023198,2]
[349343196,1737126658993,-223.2,0.00023198,2]
[349343198,1737126659003,-500.0,0.00023198,2]
[349343200,1737126659012,-500.0,0.00023198,2]
[349343202,1737126659022,-500.0,0.00023198,2]
[349343204,1737126659034,-500.0,0.00023198,2]
[349343205,1737126659047,-500.0,0.00023198,2]
[349343208,1737126659059,-559.1,0.00023198,2]
[349343210,1737126659068,-500.0,0.00023198,2]
[349343212,1737126659077,-500.0,0.00023198,2]
[349343214,1737126659086,-500.0,0.00023198,2]
[349343216,1737126659095,-500.0,0.00023198,2]
[349343217,1737126659105,-500.0,0.00023198,2]
[349343220,1737126659114,-500.0,0.00023198,2]
[349343222,1737126659123,-500.0,0.00023198,2]
[349343223,1737126659133,-500.0,0.00023198,2]
[349343226,1737126659142,-500.0,0.00023198,2]
[349343228,1737126659152,-500.0,0.00023198,2]
[349343230,1737126659161,-500.0,0.00023198,2]
[349343231,1737126659171,-500.0,0.00023198,2]
[349343234,1737126659181,-500.0,0.00023198,2]
[349343235,1737126659191,-500.0,0.00023198,2]
[349343238,1737126659201,-500.0,0.00023198,2]
[349343240,1737126659212,-500.0,0.00023198,2]
[349343242,1737126659224,-500.0,0.00023198,2]
[349343244,1737126659236,-500.0,0.00023198,2]
[349343246,1737126659246,-500.0,0.00023198,2]
[349343248,1737126659257,-500.0,0.00023198,2]
[349343250,1737126659266,-500.0,0.00023198,2]
[349343252,1737126659276,-500.0,0.00023198,2]
[349343254,1737126659285,-500.0,0.00023198,2]
[349343256,1737126659297,-500.0,0.00023198,2]
[349343258,1737126659307,-500.0,0.00023198,2]
[349343260,1737126659316,-500.0,0.00023198,2]
[349343262,1737126659326,-500.0,0.00023198,2]
[349343264,1737126659337,-500.0,0.00023198,2]
[349343266,1737126659346,-565.93465827,0.00023198,2]
[349343268,1737126659356,-500.0,0.00023198,2]
[349343270,1737126659368,-500.0,0.00023198,2]
[349343272,1737126659377,-317.91462701,0.00023198,2]
[349343274,1737126659386,-269.81089747,0.00023198,2]
[349343276,1737126659395,-500.0,0.00023198,2]
[349343278,1737126659405,-500.0,0.00023198,2]
[349343280,1737126659414,-500.0,0.00023198,2]
[349343282,1737126659425,-500.0,0.00023198,2]
[349343284,1737126659435,-500.0,0.00023198,2]
[349343286,1737126659445,-500.0,0.00023198,2]
[349343288,1737126659454,-500.0,0.00023198,2]
[349343290,1737126659464,-500.0,0.00023198,2]
[349343293,1737126659474,-523.19494236,0.00023198,2]
[349343294,1737126659484,-500.0,0.00023198,2]
[349343296,1737126659493,-500.0,0.00023198,2]
[349343298,1737126659504,-500.0,0.00023198,2]
[349343300,1737126659514,-500.0,0.00023198,2]
[349343302,1737126659524,-500.0,0.00023198,2]
[349343304,1737126659533,-500.0,0.00023198,2]
[349343306,1737126659543,-500.0,0.00023198,2]
[349343308,1737126659553,-500.0,0.00023198,2]
[349343310,1737126659562,-500.0,0.00023198,2]
[349343312,1737126659572,-500.0,0.00023198,2]
[349343314,1737126659582,-500.0,0.00023198,2]
[349343316,1737126659591,-500.0,0.00023198,2]
[349343318,1737126659601,-500.0,0.00023198,2]
[349343320,1737126659611,-583.37,0.00023198,2]
[349343323,1737126659621,-500.0,0.00023198,2]
[349343324,1737126659631,-500.0,0.00023198,2]
[349343327,1737126659641,-500.0,0.00023198,2]
[349343329,1737126659651,-500.0,0.00023198,2]
[349343331,1737126659661,-500.0,0.00023198,2]
[349343333,1737126659670,-500.0,0.00023198,2]
[349343335,1737126659680,-500.0,0.00023198,2]
[349343337,1737126659689,-500.0,0.00023198,2]
[349343339,1737126659698,-500.0,0.00023198,2]
[349343341,1737126659708,-500.0,0.00023198,2]
[349343342,1737126659717,-500.0,0.00023198,2]
[349343344,1737126659727,-76.86247526,0.00023198,2]
[349343364,1737126659903,-423.13752474,0.00023198,2]
[349343366,1737126659914,-500.0,0.00023198,2]
[349343368,1737126659924,-500.0,0.00023198,2]
[349343370,1737126659934,-181.81,0.00023198,2]
[349343372,1737126659943,-500.0,0.00023198,2]
[349343374,1737126659953,-500.0,0.00023198,2]
[349343376,1737126659964,-500.0,0.00023198,2]
[349343378,1737126659974,-500.0,0.00023198,2]
[349343380,1737126659983,-500.0,0.00023198,2]
[349343382,1737126659993,-500.0,0.00023198,2]
[349343384,1737126660003,-331.35263455,0.00023198,2]
[349343386,1737126660013,-500.0,0.00023198,2]
[349343388,1737126660023,-500.0,0.00023198,2]
[349343390,1737126660032,-500.0,0.00023198,2]
[349343392,1737126660042,-500.0,0.00023198,2]
[349343394,1737126660053,-500.0,0.00023198,2]
[349343396,1737126660063,-500.0,0.00023198,2]
[349343398,1737126660073,-500.0,0.00023198,2]
[349343400,1737126660084,-500.0,0.00023198,2]
[349343402,1737126660094,-500.0,0.00023198,2]
[349343404,1737126660105,-500.0,0.00023198,2]
[349343406,1737126660114,-500.0,0.00023198,2]
[349343408,1737126660124,-500.0,0.00023198,2]
[349343410,1737126660135,-500.0,0.00023198,2]
[349343412,1737126660144,-500.0,0.00023198,2]
[349343414,1737126660154,-500.0,0.00023198,2]
[349343416,1737126660163,-500.0,0.00023198,2]
[349343417,1737126660174,-231.70437562,0.00023198,2]
[349343420,1737126660184,-500.0,0.00023198,2]
[349343422,1737126660194,-500.0,0.00023198,2]
[349343424,1737126660204,-500.0,0.00023198,2]
[349343426,1737126660218,-500.0,0.00023198,2]
[349343428,1737126660228,-500.0,0.00023198,2]
[349343430,1737126660239,-500.0,0.00023198,2]
[349343432,1737126660250,-500.0,0.00023198,2]
[349343434,1737126660262,-500.0,0.00023198,2]
[349343436,1737126660271,-500.0,0.00023198,2]
[349343438,1737126660281,-500.0,0.00023198,2]
[349343440,1737126660291,-500.0,0.00023198,2]
[349343442,1737126660301,-467.59538746,0.00023198,2]
[349343444,1737126660310,-500.0,0.00023198,2]
[349343446,1737126660320,-43.60007763,0.00023198,2]
[349343881,1737126853102,197.88,0.00012329,2]
[349343883,1737126864187,155.01,0.00010137,2]
[349343884,1737127121062,-155.01,0.00018594,2]
[349343886,1737127508470,29000.0,0.00012,2]
[349343887,1737127508498,150000.0,0.00012,2]
[349343888,1737127508526,591494.52820123,0.00012,2]
[349343889,1737127508556,1000000.0,0.00012,2]
[349343890,1737127508585,1000000.0,0.00012,2]
[349343891,1737127508623,3153.66,0.00012,2]
[349343892,1737127508653,3309.0,0.00012,2]
[349343893,1737127508682,3309.0,0.00012,2]
[349343894,1737127508712,3309.0,0.00012,2]
[349343895,1737127508746,3309.0,0.00012,2]
[349343896,1737127508775,3309.0,0.00012,2]
[349343897,1737127508804,3309.0,0.00012,2]
[349343898,1737127508833,3309.0,0.00012,2]
[349343899,1737127508865,3309.0,0.00012,2]
[349343900,1737127508896,3309.0,0.00012,2]
[349343901,1737127508932,2464701.50364203,0.00012,2]
[349343902,1737127518075,24960.71281429,0.00012,2]
[349343903,1737127520224,1882.67898074,9e-05,2]
[349343904,1737127530149,107013.36268911,0.00011,2]
[349343905,1737127541830,5132.23047516,0.00011,2]
[349343906,1737127642095,-469.43629779,0.00020461,2]
[349343907,1737127643131,-773.46370221,0.00020461,2]
[349343908,1737127643154,-823.3164186,0.00020777,2]
[349343910,1737127682997,60956.04236928,0.0001,2]
[349343913,1737127717253,8109.33333065,0.00011,2]
[349343916,1737127725791,300.0,0.00012,2]
[349343919,1737127753081,-1180.75,0.00018885,2]
[349343920,1737127753104,-3104.5568537,0.000191,2]
[349343921,1737127755101,-366.01208624,0.000191,2]
[349343929,1737127832298,-258.8382938,0.000191,2]
[349343935,1737127832353,-12.59276626,0.000191,2]
[349343937,1737127832363,-214.77291572,0.000199,2]
[349343939,1737127832373,-64.86278444,0.000199,2]
[349343940,1737127832814,-598.83933012,0.000199,2]
[349343941,1737127832824,-1436.77415549,0.0002,4]
[349343942,1737127832834,-4397.73716599,0.0002,4]
[349343943,1737127832843,-663.70211455,0.00020619,2]
[349343944,1737127832852,-701.06,0.00020719,2]
[349343945,1737127832862,-250.0,0.00020735,2]
[349343946,1737127832871,-23890.0,0.00020744,2]
[349343947,1737127832881,-208.75,0.0002081,2]
[349343948,1737127832891,-2751.0,0.00020877,2]
[349343949,1737127832901,-250.0,0.00020877,2]
[349343950,1737127832911,-150.0,0.00021093,2]
[349343951,1737127832922,-1004.66,0.00021093,2]
[349343953,1737127832932,-1180.75,0.00021149,2]
[349343955,1737127832941,-500.0,0.00021178,2]
[349343956,1737127832951,-505.29,0.00021282,2]
[349343957,1737127832960,-163.28,0.00021447,2]
[349343958,1737127832970,-163.28,0.0002146,2]
[349343959,1737127832979,-163.28,0.00021474,2]
[349343961,1737127832988,-701.06,0.00021485,2]
[349343963,1737127832997,-163.28,0.00021487,2]
[349343965,1737127833007,-300.0,0.00021488,2]
[349343967,1737127833017,-8487.49,0.00021489,2]
[349343969,1737127833026,-1000.0,0.00021489,2]
[349343971,1737127833036,-163.28,0.000215,2]
[349343973,1737127833049,-163.28,0.00021514,2]
[349343975,1737127833058,-163.28,0.00021527,2]
[349343977,1737127833068,-163.28,0.00021541,2]
[349343979,1737127833077,-163.28,0.00021554,2]
[349343981,1737127833087,-871.57,0.00021717,2]
[349343983,1737127833097,-957.54,0.00021717,2]
[349343985,1737127833106,-16436.91,0.00021757,2]
[349343987,1737127833116,-193.61,0.0002178,2]
[349343989,1737127833125,-250.0,0.00021798,2]
[349343991,1737127833135,-200.0,0.00021877,2]
[349343993,1737127833144,-214.77291571,0.000219,2]
[349343995,1737127833154,-600.0,0.000219,7]
[349343997,1737127833163,-220.6107,0.00021938,2]
[349343999,1737127833173,-173.2,0.00021945,2]
[349344001,1737127833182,-2004.4202,0.00021988,2]
[349344003,1737127833192,-833.3775,0.00021988,2]
[349344005,1737127833200,-311.7496,0.00021988,2]
[349344006,1737127833210,-1200.0,0.00022,8]
[349344009,1737127833219,-10000.0,0.00022008,2]
[349344011,1737127833229,-5107.49,0.00022013,2]
[349344012,1737127833239,-158.3770943,0.00022037,2]
[349344014,1737127833248,-1552.118,0.00022037,2]
[349344017,1737127833258,-85127.66986084,0.00022088,2]
[349344019,1737127833271,-43974.11979403,0.00022088,2]
[349344047,1737127833281,-405.279032,0.00022088,2]
[349344048,1737127833577,-11374.11177721,0.00022088,2]
[349344049,1737127833591,-4578.48195301,0.00022088,2]
[349344050,1737127833603,-393.04398086,0.00022088,2]
[349344051,1737127833619,-2950.0,0.00022088,2]
[349344056,1737127833704,-2567.52783535,0.00022088,2]
[349344058,1737127833714,-225.0,0.00022099,2]
[349344060,1737127833723,-1800.0,0.000221,8]
[349344062,1737127833732,-2400.0,0.000222,8]
[349344064,1737127833741,-701.06,0.00022252,2]
[349344066,1737127833751,-3000.0,0.000223,8]
[349344068,1737127833760,-600.0,0.000224,8]
[349344070,1737127833770,-600.0,0.000225,8]
[349344072,1737127833780,-600.0,0.000226,8]
[349344074,1737127833789,-5000.0,0.00022633,2]
[349344076,1737127833803,-600.0,0.000227,8]
[349344078,1737127833815,-380.74060403,0.00022732,2]
[349344080,1737127833828,-279.46278826,0.00022732,2]
[349344082,1737127833837,-18717.2376,0.00022733,2]
[349344084,1737127833848,-1873.74583914,0.00022733,2]
[349344086,1737127833858,-158.70286391,0.00022733,2]
[349344088,1737127833867,-716.0,0.000228,8]
[349344090,1737127833877,-124842.7818,0.00022833,2]
[349344092,1737127833887,-158.70286388,0.00022855,2]
[349344094,1737127833896,-1000.0,0.000229,2]
[349344096,1737127833906,-1005.0,0.000229,2]
[349344098,1737127833918,-163.04004701,0.000229,2]
[349344100,1737127833928,-163.04004698,0.000229,2]
[349344102,1737127833938,-163.04004698,0.000229,2]
[349344104,1737127833948,-1588.84835914,0.00022932,2]
[349344106,1737127833958,-7239.5979,0.00022933,2]
[349344108,1737127833968,-800.0,0.00022933,2]
[349344110,1737127833978,-15215.219,0.00022933,2]
[349344112,1737127833988,-3000.0,0.0002297,2]
[349344114,1737127833998,-158.70286388,0.00022978,2]
[349344116,1737127834008,-7049.27072638,0.00023,2]
[349344118,1737127834018,-2110.0,0.00023,2]
[349344120,1737127834027,-1434.0,0.00023,2]
[349344122,1737127834037,-1004.0,0.00023,2]
[349344124,1737127834050,-200.0,0.00023017,2]
[349344126,1737127834060,-701.06,0.00023018,2]
[349344128,1737127834069,-237.86746992,0.00023026,2]
[349344130,1737127834079,-272.04448123,0.00023033,2]
[349344132,1737127834088,-502.40472861,0.00023033,2]
[349344134,1737127834098,-301.63947354,0.00023033,2]
[349344136,1737127834109,-500.0,0.00023033,2]
[349344138,1737127834119,-500.0,0.00023033,2]
[349344140,1737127834129,-500.0,0.00023033,2]
[349344142,1737127834139,-544.6,0.00023033,2]
[349344144,1737127834150,-500.0,0.00023033,2]
[349344146,1737127834160,-500.0,0.00023033,2]
[349344148,1737127834170,-500.0,0.00023033,2]
[349344150,1737127834180,-505.5394161,0.00023033,2]
[349344152,1737127834190,-500.0,0.00023033,2]
[349344154,1737127834200,-500.0,0.00023033,2]
[349344156,1737127834210,-500.0,0.00023033,2]
[349344158,1737127834219,-500.0,0.00023033,2]
[349344160,1737127834229,-500.0,0.00023033,2]
[349344162,1737127834238,-503.61817683,0.00023033,2]
[349344164,1737127834248,-500.0,0.00023033,2]
[349344166,1737127834258,-500.0,0.00023033,2]
[349344168,1737127834267,-497.74743645,0.00023033,2]
[349344170,1737127834277,-500.0,0.00023033,2]
[349344172,1737127834286,-500.0,0.00023033,2]
[349344174,1737127834300,-703.14,0.00023033,2]
[349344176,1737127834310,-500.0,0.00023033,2]
[349344178,1737127834320,-500.0,0.00023033,2]
[349344180,1737127834330,-509.62,0.00023033,2]
[349344182,1737127834340,-500.0,0.00023033,2]
[349344184,1737127834349,-268.66363971,0.00023033,2]
[349344186,1737127834359,-500.0,0.00023033,2]
[349344188,1737127834368,-500.0,0.00023033,2]
[349344190,1737127834377,-500.0,0.00023033,2]
[349344192,1737127834387,-500.0,0.00023033,2]
[349344194,1737127834396,-599.25509399,0.00023033,2]
[349344196,1737127834405,-500.0,0.00023033,2]
[349344198,1737127834415,-500.0,0.00023033,2]
[349344200,1737127834425,-500.0,0.00023033,2]
[349344202,1737127834435,-506.12862234,0.00023033,2]
[349344204,1737127834444,-386.51829599,0.00023033,2]
[349344206,1737127834455,-500.0,0.00023033,2]
[349344208,1737127834465,-500.0,0.00023033,2]
[349344210,1737127834474,-500.0,0.00023033,2]
[349344212,1737127834484,-500.0,0.00023033,2]
[349344214,1737127834494,-500.0,0.00023033,2]
[349344216,1737127834504,-177.02,0.00023033,2]
[349344218,1737127834514,-500.0,0.00023033,2]
[349344220,1737127834524,-500.0,0.00023033,2]
[349344222,1737127834534,-500.0,0.00023033,2]
[349344224,1737127834547,-500.0,0.00023033,2]
[349344226,1737127834557,-500.0,0.00023033,2]
[349344228,1737127834567,-500.0,0.00023033,2]
[349344230,1737127834581,-500.0,0.00023033,2]
[349344232,1737127834591,-500.0,0.00023033,2]
[349344234,1737127834601,-500.0,0.00023033,2]
[349344236,1737127834611,-5000.0,0.00023033,2]
[349344238,1737127834621,-500.0,0.00023033,2]
[349344240,1737127834631,-500.0,0.00023033,2]
[349344242,1737127834641,-500.0,0.00023033,2]
[349344244,1737127834652,-500.0,0.00023033,2]
[349344246,1737127834663,-500.0,0.00023033,2]
[349344248,1737127834673,-500.0,0.00023033,2]
[349344250,1737127834683,-500.0,0.00023033,2]
[349344252,1737127834694,-300.53524621,0.00023033,2]
[349344254,1737127834704,-500.0,0.00023033,2]
[349344256,1737127834714,-500.0,0.00023033,2]
[349344258,1737127834724,-500.0,0.00023033,2]
[349344260,1737127834734,-500.0,0.00023033,2]
[349344262,1737127834744,-500.0,0.00023033,2]
[349344264,1737127834754,-500.0,0.00023033,2]
[349344266,1737127834764,-500.0,0.00023033,2]
[349344268,1737127834774,-500.0,0.00023033,2]
[349344270,1737127834784,-500.0,0.00023033,2]
[349344272,1737127834798,-500.0,0.00023033,2]
[349344274,1737127834808,-500.0,0.00023033,2]
[349344276,1737127834818,-500.0,0.00023033,2]
[349344278,1737127834828,-500.0,0.00023033,2]
[349344280,1737127834839,-617.46637439,0.00023033,2]
[349344282,1737127834848,-500.0,0.00023033,2]
[349344284,1737127834859,-500.0,0.00023033,2]
[349344286,1737127834869,-500.0,0.00023033,2]
[349344288,1737127834879,-500.0,0.00023033,2]
[349344290,1737127834888,-500.0,0.00023033,2]
[349344292,1737127834898,-500.0,0.00023033,2]
[349344294,1737127834908,-500.0,0.00023033,2]
[349344296,1737127834920,-505.47247884,0.00023033,2]
[349344298,1737127834931,-500.0,0.00023033,2]
[349344300,1737127834943,-500.0,0.00023033,2]
[349344302,1737127834954,-500.0,0.00023033,2]
[349344304,1737127834963,-500.0,0.00023033,2]
[349344306,1737127834973,-500.0,0.00023033,2]
[349344308,1737127834985,-503.4326345,0.00023033,2]
[349344310,1737127834995,-500.0,0.00023033,2]
[349344312,1737127835005,-500.0,0.00023033,2]
[349344314,1737127835016,-500.0,0.00023033,2]
[349344316,1737127835026,-500.0,0.00023033,2]
[349344318,1737127835037,-500.0,0.00023033,2]
[349344320,1737127835054,-500.0,0.00023033,2]
[349344322,1737127835065,-500.0,0.00023033,2]
[349344324,1737127835075,-500.0,0.00023033,2]
[349344326,1737127835086,-504.81830075,0.00023033,2]
[349344328,1737127835098,-500.0,0.00023033,2]
[349344330,1737127835110,-518.57219285,0.00023033,2]
[349344332,1737127835122,-506.32247733,0.00023033,2]
[349344334,1737127835133,-500.0,0.00023033,2]
[349344336,1737127835143,-594.16775476,0.00023033,2]
[349344338,1737127835154,-500.0,0.00023033,2]
[349344340,1737127835164,-511.87982652,0.00023033,2]
[349344342,1737127835174,-500.0,0.00023033,2]
[349344344,1737127835184,-500.0,0.00023033,2]
[349344346,1737127835194,-500.0,0.00023033,2]
[349344348,1737127835203,-500.0,0.00023033,2]
[349344350,1737127835213,-505.12863567,0.00023033,2]
[349344352,1737127835223,-500.0,0.00023033,2]
[349344354,1737127835233,-500.0,0.00023033,2]
[349344356,1737127835243,-456.85469016,0.00023033,2]
[349344358,1737127835253,-500.0,0.00023033,2]
[349344360,1737127835262,-375.2894144,0.00023033,2]
[349344362,1737127835272,-534.35,0.00023033,2]
[349344364,1737127835283,-581.24981734,0.00023033,2]
[349344366,1737127835295,-500.0,0.00023033,2]
[349344368,1737127835305,-500.0,0.00023033,2]
[349344370,1737127835315,-500.0,0.00023033,2]
[349344372,1737127835325,-500.0,0.00023033,2]
[349344374,1737127835335,-500.0,0.00023033,2]
[349344376,1737127835345,-500.0,0.00023033,2]
[349344378,1737127835354,-500.0,0.00023033,2]
[349344380,1737127835363,-500.0,0.00023033,2]
[349344382,1737127835373,-500.0,0.00023033,2]
[349344384,1737127835382,-500.0,0.00023033,2]
[349344386,1737127835391,-500.0,0.00023033,2]
[349344387,1737127835400,-547.44947401,0.00023033,2]
[349344390,1737127835412,-500.0,0.00023033,2]
[349344391,1737127835422,-518.39300231,0.00023033,2]
[349344394,1737127835432,-500.0,0.00023033,2]
[349344396,1737127835442,-500.0,0.00023033,2]
[349344397,1737127835452,-500.0,0.00023033,2]
[349344399,1737127835463,-505.89830328,0.00023033,2]
[349344401,1737127835474,-500.0,0.00023033,2]
[349344403,1737127835484,-500.0,0.00023033,2]
[349344405,1737127835493,-504.75280833,0.00023033,2]
[349344407,1737127835503,-500.0,0.00023033,2]
[349344409,1737127835513,-500.0,0.00023033,2]
[349344411,1737127835522,-500.0,0.00023033,2]
[349344413,1737127835532,-500.0,0.00023033,2]
[349344416,1737127835546,-500.0,0.00023033,2]
[349344418,1737127835555,-500.0,0.00023033,2]
[349344419,1737127835564,-500.0,0.00023033,2]
[349344421,1737127835574,-500.0,0.00023033,2]
[349344423,1737127835587,-500.0,0.00023033,2]
[349344426,1737127835597,-513.06025574,0.00023033,2]
[349344428,1737127835607,-500.0,0.00023033,2]
[349344430,1737127835616,-547.85955521,0.00023033,2]
[349344432,1737127835627,-500.0,0.00023033,2]
[349344434,1737127835636,-500.0,0.00023033,2]
[349344436,1737127835646,-4710.35,0.00023033,2]
[349344438,1737127835656,-500.0,0.00023033,2]
[349344440,1737127835667,-500.0,0.00023033,2]
[349344442,1737127835677,-500.0,0.00023033,2]
[349344444,1737127835686,-500.0,0.00023033,2]
[349344446,1737127835695,-500.0,0.00023033,2]
[349344448,1737127835705,-500.0,0.00023033,2]
[349344450,1737127835714,-508.92334491,0.00023033,2]
[349344452,1737127835723,-500.0,0.00023033,2]
[349344453,1737127835732,-500.0,0.00023033,2]
[349344456,1737127835742,-501.31798014,0.00023033,2]
[349344457,1737127835752,-500.0,0.00023033,2]
[349344459,1737127835761,-500.0,0.00023033,2]
[349344461,1737127835771,-500.0,0.00023033,2]
[349344463,1737127835780,-500.0,0.00023033,2]
[349344465,1737127835790,-500.0,0.00023033,2]
[349344467,1737127835803,-500.0,0.00023033,2]
[349344469,1737127835813,-500.0,0.00023033,2]
[349344472,1737127835823,-500.0,0.00023033,2]
[349344474,1737127835832,-158.02441885,0.00023033,2]
[349344476,1737127835842,-500.0,0.00023033,2]
[349344478,1737127835851,-500.0,0.00023033,2]
[349344480,1737127835860,-500.0,0.00023033,2]
[349344482,1737127835870,-500.0,0.00023033,2]
[349344484,1737127835879,-500.0,0.00023033,2]
[349344486,1737127835888,-500.0,0.00023033,2]
[349344488,1737127835897,-500.0,0.00023033,2]
[349344489,1737127835907,-500.0,0.00023033,2]
[349344492,1737127835918,-500.0,0.00023033,2]
[349344493,1737127835927,-173.17,0.00023033,2]
[349344495,1737127835936,-500.0,0.00023033,2]
[349344498,1737127835946,-502.61471287,0.00023033,2]
[349344499,1737127835955,-500.0,0.00023033,2]
[349344502,1737127835967,-500.0,0.00023033,2]
[349344504,1737127835976,-500.0,0.00023033,2]
[349344506,1737127835986,-513.18061996,0.00023033,2]
[349344508,1737127835997,-500.0,0.00023033,2]
[349344509,1737127836006,-500.0,0.00023033,2]
[349344512,1737127836015,-500.0,0.00023033,2]
[349344514,1737127836025,-500.0,0.00023033,2]
[349344515,1737127836034,-500.0,0.00023033,2]
[349344522,1737127836092,-500.0,0.00023033,2]
[349344524,1737127836102,-500.0,0.00023033,2]
[349344526,1737127836112,-176.70613598,0.00023033,2]
[349344528,1737127836121,-276.24302064,0.00023033,2]
[349344530,1737127836130,-500.0,0.00023033,2]
[349344532,1737127836139,-171.31895876,0.00023033,2]
[349344534,1737127836148,-500.0,0.00023033,2]
[349344536,1737127836157,-500.0,0.00023033,2]
[349344538,1737127836167,-500.0,0.00023033,2]
[349344540,1737127836178,-500.0,0.00023033,2]
[349344542,1737127836187,-500.0,0.00023033,2]
[349344544,1737127836196,-500.0,0.00023033,2]
[349344546,1737127836206,-500.0,0.00023033,2]
[349344548,1737127836216,-500.0,0.00023033,2]
[349344550,1737127836226,-500.0,0.00023033,2]
[349344552,1737127836235,-500.0,0.00023033,2]
[349344554,1737127836244,-574.24,0.00023033,2]
[349344556,1737127836253,-1397.05,0.00023033,2]
[349344558,1737127836262,-500.0,0.00023033,2]
[349344560,1737127836272,-500.89256421,0.00023033,2]
[349344562,1737127836281,-500.0,0.00023033,2]
[349344564,1737127836292,-500.0,0.00023033,2]